[Event "XV American Continental 2022"]
[Site "San Salvador"]
[Date "2022.05.10"]
[Round "10.1"]
[White "Gareyev, Timur"]
[Black "Hungaski, Robert"]
[Result "1-0"]
[ECO "D27"]
[WhiteElo "2565"]
[BlackElo "2521"]
[Annotator "TA"]
[PlyCount "103"]
[EventDate "2022.05.02"]
[EventCountry "ESA"]
[SourceTitle "playchess.com"]
[Source "ChessBase"]
[SourceQuality "1"]
[TimeControl "40/5400+30:1800+30"]

{[%evp 15,103,24,27,22,35,39,36,10,14,0,19,0,0,0,0,0,0,-4,0,0,0,-5,-12,-11,47,33,103,103,103,110,108,111,114,102,113,102,113,110,113,114,100,92,167,124,248,184,310,218,271,184,286,272,242,56,56,47,47,47,47,47,56,47,47,47,47,47,47,77,1900,1646,1358,1265,29963,29963,4927,29964,12833,12839,5202,5228,29969,29967,29979,29980,29980,29981,29981,29981,29981,29982]} 1. d4 {[%emt 0:00:32]} d5 {[%emt 0:00:06]} 2. c4 {[%emt 0:00:07]} dxc4 {[%emt 0:00:05]} 3. Nf3 {[%emt 0:00:09]} Nf6 {[%emt 0:00:06]} 4. e3 {[%emt 0:00:22]} e6 {[%emt 0:00:15]} 5. Bxc4 {[%emt 0:00:08]} c5 {[%emt 0:00:05]} 6. O-O {[%emt 0:00:10]} a6 {[%emt 0:00:04]} 7. dxc5 {[%emt 0:00:35]} Bxc5 {[%emt 0:00:53]} 8. Qxd8+ {[%emt 0:00:08]} Kxd8 {[%emt 0:00:05]} 9. Be2 {[%emt 0:00:30] D27: Queen's Gambit Accepted: Classical main line: 7 e4!? and 7 a4.} Ke7 {[%emt 0:00:30]} 10. Ne5 {[%emt 0:00:28]} Nbd7 {[%emt 0:03:18]} 11. Nd3 {[%emt 0:01:43] White is slightly better.} Bd6 {[%emt 0:00:14]} 12. Nd2 {[%emt 0:00:09]} b5 {[%emt 0:00:33] Prevents Nc4.} 13. Nb3 {[%emt 0:00:42]} Bb7 {[%emt 0:00:15]} 14. f3 {[%emt 0:00:10] [#]} Bd5 $146 {[%emt 0:06:10]} ({Predecessor:} 14... Rhc8 15. Bd2 Nb6 16. Na5 Nc4 17. Nxb7 Nxd2 18. Nxd6 Kxd6 19. Rfd1 Nc4 {½-½ (19) Farago,I (2476)-Nyzhnyk,I (2544) Bad Woerishofen 2010}) 15. e4 {[%emt 0:00:36]} Bc4 {[%emt 0:01:20]} 16. Rd1 {[%emt 0:06:07]} Rhc8 {[%emt 0:08:37]} 17. Bd2 {[%emt 0:08:47]} Ne5 {[%emt 0:14:05]} 18. Bc3 {[%emt 0:02:34]} Nfd7 {[%emt 0:06:14][%cal Oa6a5]} 19. Na5 {[%emt 0:30:57]} Rc7 {[%emt 0:18:55]} (19... Nxd3 $11 20. Bxd3 Bxd3 21. Rxd3 Ne5 22. Rxd6 Rxc3) 20. Nxe5 {[%emt 0:04:24]} (20. Nxc4 {is more complex.} Nxc4 21. a4 Rd8 22. axb5 axb5 23. Nb4) 20... Bxe5 {[%emt 0:05:37] [#]} (20... Nxe5 $14 21. Nxc4 Nxc4) 21. Rxd7+ $1 $16 {[%emt 0:18:10][%mdl 512]} Kxd7 {[%emt 0:00:06]} 22. Bxe5 {[%emt 0:03:48]} ({Of course not} 22. Nxc4 $6 Bxc3 23. Nb6+ Ke7 24. Nxa8 Bd4+ 25. Kf1 Rc8 $11) 22... Bxe2 {[%emt 0:00:14]} 23. Bxc7 {[%emt 0:00:12]} Kxc7 $14 {[%emt 0:00:08][%mdl 4096] Endgame KRB-KRN} 24. Rc1+ {[%emt 0:01:21]} Kb6 {[%emt 0:03:28]} 25. b4 {[%emt 0:00:11] Threatens to win with Rc6+.} Bc4 {[%emt 0:01:49]} 26. Nxc4+ {[%emt 0:00:40]} bxc4 {[%emt 0:00:05]} 27. Rxc4 $16 {[%emt 0:00:08] KR-KR} Rd8 {[%emt 0:06:26]} 28. a4 {[%emt 0:00:28]} Rd2 {[%emt 0:07:07]} (28... Rd1+ $16 29. Kf2 Rd2+ 30. Kg3 Kb7) 29. h4 {[%emt 0:00:53]} f6 {[%emt 0:00:38]} (29... Ra2 $16) 30. h5 {[%emt 0:03:57]} e5 {[%emt 0:00:29]} (30... Kb7 $142 31. e5 f5) 31. Kh2 {[%emt 0:03:30]} Ra2 {[%emt 0:02:43]} 32. b5 {[%emt 0:08:32]} axb5 {[%emt 0:00:21]} (32... a5 $142 33. Kg3 Kb7) 33. axb5 $18 {[%emt 0:01:01] Rc6+ is the strong threat.} Ra7 {[%emt 0:00:53]} 34. h6 $2 {[%emt 0:01:06]} ({Better is} 34. Kg3 $18) 34... Kxb5 $14 {[%emt 0:00:29]} 35. hxg7 {[%emt 0:00:13]} Rxg7 {[%emt 0:00:18]} 36. Rc8 {[%emt 0:00:31]} Kb6 {[%emt 0:02:34]} 37. Kh3 {[%emt 0:01:47]} Rg6 {[%emt 0:01:03]} 38. Rc2 {[%emt 0:00:55]} Kb7 {[%emt 0:00:57]} 39. Kh4 {[%emt 0:00:12]} Rg5 {[%emt 0:05:32]} 40. g4 {[%emt 0:00:58]} Rg6 {[%emt 0:02:30]} 41. Kh5 {[%emt 0:30:20]} Kb8 $2 {[%emt 0:31:29][%mdl 8192] This move loses the game for Black.} (41... Rg7 $16) 42. Rc6 $18 {[%emt 0:00:21]} Kb7 {[%emt 0:00:14]} 43. Re6 {[%emt 0:00:33]} Kc7 {[%emt 0:00:08]} 44. Re7+ {[%emt 0:00:07]} Kd6 {[%emt 0:00:07]} 45. Rxh7 {[%emt 0:00:13]} Rg8 {[%emt 0:01:56]} 46. Kh6 {[%emt 0:01:17] Threatening mate with Rf7.} Ke6 {[%emt 0:00:34] Inhibits Rf7.} 47. Ra7 {[%emt 0:00:52] White threatens Kh7 and mate.} Kd6 {[%emt 0:00:00]} 48. Kh7 {[%emt 0:00:00] White mates.} Rg5 {[%emt 0:00:00]} 49. Rg7 {[%emt 0:00:00]} Rxg7+ {[%emt 0:00:00]} 50. Kxg7 {[%emt 0:00:00]} Ke7 {[%emt 0:00:00]} 51. Kg6 {[%emt 0:00:00]} Ke6 {[%emt 0:00:00]} 52. g5 {[%emt 0:00:00] Weighted Error Value: White=0.19 (very precise) /Black=0.49} 1-0

[Event "XV American Continental 2022"]
[Site "San Salvador"]
[Date "2022.05.10"]
[Round "10.2"]
[White "Salinas Herrera, Pablo"]
[Black "Quesada Perez, Yasser"]
[Result "1/2-1/2"]
[ECO "C01"]
[WhiteElo "2534"]
[BlackElo "2560"]
[Annotator "TA"]
[PlyCount "112"]
[EventDate "2022.05.02"]
[EventCountry "ESA"]
[SourceTitle "playchess.com"]
[Source "ChessBase"]
[SourceQuality "1"]
[TimeControl "40/5400+30:1800+30"]

{[%evp 17,112,16,22,21,26,22,25,21,27,20,25,25,18,16,28,14,7,8,13,7,14,15,24,21,21,21,25,23,25,20,17,8,11,26,18,11,27,19,25,-16,-12,-9,8,8,10,0,8,8,1,8,8,1,2,0,0,0,8,0,0,0,0,0,0,0,0,0,0,0,0,0,8,8,8,8,8,8,8,8,8,0,8,8,8,8,8,8,8,8,8,8,8,8,8,-8,-8,-8,-8]} 1. e4 {[%emt 0:04:57]} e5 {[%emt 0:00:06]} 2. Nf3 {[%emt 0:00:06]} Nf6 {[%emt 0:00:04]} 3. Nxe5 {[%emt 0:00:45]} d6 {[%emt 0:00:05]} 4. Nf3 {[%emt 0:00:06]} Nxe4 {[%emt 0:00:03]} 5. d3 {[%emt 0:00:06]} Nf6 {[%emt 0:00:20]} 6. d4 {[%emt 0:00:05]} d5 {[%emt 0:00:18]} 7. Bd3 {[%emt 0:00:04]} Bd6 {[%emt 0:00:42]} 8. Qe2+ {[%emt 0:00:06]} Qe7 {[%emt 0:03:54]} 9. Qxe7+ {[%emt 0:00:07]} Kxe7 {[%emt 0:01:41]} 10. O-O {[%emt 0:00:09] C01: French: Exchange Variation.} Re8 {[%emt 0:00:33]} 11. Re1+ {[%emt 0:00:12] 11.Re1+ was played by the boomers.} Kf8 {[%emt 0:00:08]} 12. Rxe8+ {[%emt 0:00:06] White has an edge.} Kxe8 {[%emt 0:04:35]} 13. Nc3 {[%emt 0:00:05]} c6 {[%emt 0:10:51]} 14. Bd2 {[%emt 0:00:06]} Kf8 {[%emt 0:01:38]} 15. Re1 {[%emt 0:00:23]} Na6 {[%emt 0:07:04]} 16. a3 {[%emt 0:34:10] Prevents Nb4.} (16. Bxa6 $5 bxa6 17. Ne5 $11) 16... Nc7 {[%emt 0:01:31] [#]} 17. Nd1 $146 {[%emt 0:00:13]} ({Predecessor:} 17. Na4 Ne6 18. g3 b5 19. Nc3 a5 20. Na2 h6 21. h4 Nd7 22. Nc1 Nb6 23. Nb3 a4 24. Nc1 Nc4 25. Bc3 Bd7 26. Na2 Be8 27. Nb4 Rc8 28. Kg2 Bd7 29. Re2 {½-½ (27) Ivell,N (2198)-Lee,R (2130) England 2019}) 17... Bg4 {[%emt 0:10:58]} 18. Ne5 {[%emt 0:02:41]} Bxd1 {[%emt 0:00:14]} 19. Rxd1 {[%emt 0:00:12]} Ne6 {[%emt 0:00:22]} 20. Nf3 {[%emt 0:01:37]} Re8 {[%emt 0:03:42]} 21. g3 {[%emt 0:01:32]} Ne4 {[%emt 0:03:22]} 22. Be3 {[%emt 0:00:26]} Nc7 {[%emt 0:08:28]} 23. Ne5 {[%emt 0:05:14]} f6 {[%emt 0:04:14]} 24. Bxe4 {[%emt 0:00:31]} dxe4 {[%emt 0:00:05]} 25. Nc4 {[%emt 0:00:04]} Ke7 {[%emt 0:00:05]} 26. Na5 {[%emt 0:00:36]} Rb8 {[%emt 0:00:06]} 27. c4 {[%emt 0:00:29]} Kd7 {[%emt 0:00:50]} 28. c5 {[%emt 0:14:40]} (28. d5 $5 {[%cal Rd5c6]} c5 29. Kg2 $14) 28... Bf8 {[%emt 0:02:38] The position is equal.} 29. Bf4 {[%emt 0:00:14]} g5 {[%emt 0:02:31]} 30. Bxc7 {[%emt 0:00:45]} Kxc7 $11 {[%emt 0:00:05][%mdl 4096] Endgame KRB-KRN} 31. Nc4 {[%emt 0:02:44]} Rd8 {[%emt 0:06:32][%cal Of8c5]} 32. Ne3 {[%emt 0:00:10]} b6 {[%emt 0:01:47]} 33. cxb6+ {[%emt 0:10:09]} axb6 {[%emt 0:00:04]} 34. Kf1 {[%emt 0:06:15]} c5 {[%emt 0:01:26]} 35. dxc5 {[%emt 0:10:47]} Rxd1+ {[%emt 0:00:05]} 36. Nxd1 {[%emt 0:00:03] And now cxb6+ would win.} Bxc5 {[%emt 0:00:06] KB-KN} 37. Nc3 {[%emt 0:00:03]} f5 {[%emt 0:01:39]} 38. h3 {[%emt 0:04:38]} Kc6 {[%emt 0:09:58]} 39. g4 {[%emt 0:00:40]} fxg4 {[%emt 0:00:05]} 40. hxg4 {[%emt 0:00:03]} Bd4 {[%emt 0:00:05] [#] aiming for ...Bxc3.} 41. Nxe4 {[%emt 0:31:40]} Bxb2 {[%emt 0:32:59]} 42. Nxg5 {[%emt 0:01:14]} h6 {[%emt 0:03:39]} 43. Nf7 {[%emt 0:00:41]} Bxa3 {[%emt 0:01:43]} 44. Nxh6 {[%emt 0:00:05]} Bc1 {[%emt 0:00:05]} 45. Nf5 {[%emt 0:00:40]} Kd5 {[%emt 0:00:19]} 46. Ke2 {[%emt 0:00:10]} Ke5 {[%emt 0:02:09]} 47. f3 {[%emt 0:00:00]} b5 {[%emt 0:00:00]} 48. Ne7 {[%emt 0:00:00]} Bg5 {[%emt 0:00:00]} 49. Nc6+ {[%emt 0:00:00]} Kd5 {[%emt 0:00:00]} 50. Nb4+ {[%emt 0:00:00]} Kd4 {[%emt 0:00:00]} 51. Nd3 {[%emt 0:00:00]} Be7 {[%emt 0:00:00]} 52. Kd2 {[%emt 0:00:00]} b4 {[%emt 0:00:00]} 53. f4 {[%emt 0:00:00]} Ke4 {[%emt 0:00:00]} 54. f5 {[%emt 0:00:00]} b3 {[%emt 0:00:00]} 55. Kc3 {[%emt 0:00:00]} Bf6+ {[%emt 0:00:00]} 56. Kxb3 {[%emt 0:00:00]} Kxd3 {[%emt 0:00:00] An uneventful encounter.  Weighted Error Value: White=0.03 (flawless) /Black=0.01 (flawless)} 1/2-1/2

[Event "XV American Continental 2022"]
[Site "San Salvador"]
[Date "2022.05.09"]
[Round "10.3"]
[White "Swiercz, Dariusz"]
[Black "Morovic Fernandez, Ivan"]
[Result "1/2-1/2"]
[ECO "C84"]
[WhiteElo "2665"]
[BlackElo "2495"]
[Annotator "TA"]
[PlyCount "110"]
[EventDate "2022.05.02"]
[EventCountry "ESA"]
[SourceTitle "playchess.com"]
[Source "ChessBase"]
[SourceQuality "1"]
[TimeControl "40/5400+30:1800+30"]

{[%evp 13,110,11,28,0,20,14,22,13,33,22,37,15,47,6,51,45,40,31,41,48,52,37,49,58,52,29,50,20,85,45,77,25,77,0,35,0,33,34,45,44,43,31,66,41,40,22,40,43,33,0,0,0,24,22,32,0,6,5,10,0,0,0,0,0,7,0,0,0,0,0,0,0,0,0,0,0,0,0,0,0,0,0,0,0,0,0,0,0,0,0,0,0,0,0,0,0,0,0,0]} 1. e4 {[%emt 0:03:05]} e5 {[%emt 0:01:15]} 2. Nf3 {[%emt 0:00:05]} Nc6 {[%emt 0:00:04]} 3. Bb5 {[%emt 0:00:05]} a6 {[%emt 0:00:12]} 4. Ba4 {[%emt 0:00:04]} Nf6 {[%emt 0:00:08]} 5. O-O {[%emt 0:00:04]} Be7 {[%emt 0:00:50]} 6. d3 {[%emt 0:00:27]} b5 {[%emt 0:01:58]} 7. Bb3 {[%emt 0:00:02]} d6 {[%emt 0:00:24]} 8. Bd2 {[%emt 0:00:04] C84: Closed Ruy Lopez: Unusual White 6th moves.} O-O {[%emt 0:03:27]} 9. h3 {[%emt 0:00:37]} Bd7 {[%emt 0:15:45]} 10. Re1 {[%emt 0:07:05] [#]} Qb8 $146 {[%emt 0:04:43]} ({Predecessor:} 10... Rb8 11. a3 Be6 12. Ba2 h6 13. Nc3 Re8 14. Nd5 Nd7 15. b4 Bf6 16. c3 Rc8 {½-½ (79) Soumya,S (2369)-Kozak,A (2523) Moscow 2020}) 11. Nc3 {[%emt 0:13:09]} Qb7 {[%emt 0:13:03]} 12. Nd5 {[%emt 0:02:50]} Bd8 {[%emt 0:01:27]} (12... a5 {looks sharper.} 13. a4 Nxd5 14. Bxd5 bxa4 15. c3 Qxb2 16. Qxa4 Nb8) 13. Ne3 {[%emt 0:26:07]} Be6 {[%emt 0:08:27]} 14. Bxe6 {[%emt 0:03:42]} fxe6 {[%emt 0:00:02]} 15. a4 {[%emt 0:00:04]} Nd4 {[%emt 0:01:59]} 16. Nxd4 {[%emt 0:22:00]} exd4 {[%emt 0:00:03]} 17. Ng4 {[%emt 0:00:03]} e5 {[%emt 0:01:41]} 18. Nxf6+ {[%emt 0:08:05]} Bxf6 {[%emt 0:00:09]} 19. Qg4 {[%emt 0:00:02]} Qc6 {[%emt 0:10:48]} 20. Rec1 {[%emt 0:00:11]} Qb6 {[%emt 0:11:55]} (20... bxa4 $11 21. Qe6+ Rf7) 21. b3 {[%emt 0:01:43]} Kh8 {[%emt 0:02:01]} 22. Ra2 {[%emt 0:00:37]} (22. b4 $16) 22... Rae8 {[%emt 0:06:09]} (22... b4 $11 {keeps the balance.}) 23. g3 {[%emt 0:04:35]} ({Better is} 23. b4 $16) 23... Bd8 {[%emt 0:00:24]} 24. Kg2 {[%emt 0:00:38]} Qb7 {[%emt 0:01:15]} 25. axb5 {[%emt 0:01:17]} axb5 {[%emt 0:00:04]} 26. Rca1 {[%emt 0:00:05]} Qc6 {[%emt 0:00:57]} 27. h4 {[%emt 0:00:43]} (27. Qd1 {feels hotter.} Qd7 28. Ra6 d5 29. Qg4) 27... Bf6 {[%emt 0:00:46]} 28. h5 {[%emt 0:01:21]} h6 {[%emt 0:01:29]} 29. Kg1 {[%emt 0:02:03]} d5 {[%emt 0:02:34]} 30. exd5 {[%emt 0:02:37]} Qxd5 {[%emt 0:00:04]} 31. Re1 {[%emt 0:00:05] Against e4} Ra8 {[%emt 0:01:35]} 32. Rxa8 {[%emt 0:00:33]} Qxa8 {[%emt 0:00:22]} 33. Bb4 {[%emt 0:01:06]} Qc8 {[%emt 0:02:44]} 34. Qg6 {[%emt 0:01:43]} c5 {[%emt 0:01:02] The position is equal.} 35. Bd2 {[%emt 0:00:01]} c4 {[%emt 0:02:39]} (35... Qb7 {keeps more tension.} 36. f4 Qf3 37. Rf1 Qe2) 36. bxc4 {[%emt 0:00:01]} bxc4 {[%emt 0:00:04]} 37. Ra1 {[%emt 0:01:06][%cal Od2h6]} cxd3 {[%emt 0:01:12]} 38. cxd3 {[%emt 0:00:01][%cal Od2h6]} Qb7 {[%emt 0:01:52]} 39. Re1 {[%emt 0:01:20]} Qf3 {[%emt 0:00:29][%cal Of6g5] [#] And now ...Bg5! would win.} 40. Rf1 {[%emt 0:00:20]} Rc8 {[%emt 0:01:39]} 41. Ra1 {[%emt 0:05:43]} Rf8 {[%emt 0:10:13]} 42. Bb4 {[%emt 0:10:15]} Rb8 {[%emt 0:03:47]} 43. Rc1 {[%emt 0:04:34]} e4 {[%emt 0:11:09] ...e3 is the strong threat.} 44. Bd6 {[%emt 0:05:50]} Rd8 {[%emt 0:03:33]} 45. Bf4 {[%emt 0:02:48]} e3 {[%emt 0:03:14]} 46. fxe3 {[%emt 0:00:04]} dxe3 {[%emt 0:00:02]} 47. Rf1 {[%emt 0:01:01] Prevents Qf2+.} Qd5 {[%emt 0:03:07] [#] White must now prevent ...e2.} 48. Bxe3 {[%emt 0:01:20]} Qxd3 {[%emt 0:00:14]} 49. Qxd3 {[%emt 0:01:44]} Rxd3 $11 {[%emt 0:00:02][%mdl 4096] Endgame KRB-KRB} 50. Kf2 {[%emt 0:00:37]} Bd4 {[%emt 0:01:09]} 51. Bxd4 {[%emt 0:00:08]} Rxd4 {[%emt 0:00:03]} 52. Kf3 {[%emt 0:00:35]} g6 {[%emt 0:00:25]} 53. hxg6 {[%emt 0:00:05]} Kg7 {[%emt 0:00:02]} 54. Rh1 {[%emt 0:00:30]} Kxg6 {[%emt 0:00:05]} 55. Rh4 {[%emt 0:00:02]} Rxh4 {Weighted Error Value: White=0.11 (very precise) /Black=0.13 (very precise)} 1/2-1/2

[Event "XV American Continental 2022"]
[Site "San Salvador"]
[Date "2022.05.09"]
[Round "10.4"]
[White "Pichot, Alan"]
[Black "Kaidanov, Gregory"]
[Result "0-1"]
[ECO "C80"]
[WhiteElo "2652"]
[BlackElo "2556"]
[Annotator "TA"]
[PlyCount "84"]
[EventDate "2022.05.02"]
[EventCountry "ESA"]
[SourceTitle "playchess.com"]
[Source "ChessBase"]
[SourceQuality "1"]
[TimeControl "40/5400+30:1800+30"]

{[%evp 21,84,36,37,18,22,27,25,-20,-8,-9,-23,-46,-54,-33,-27,-70,-8,-7,0,-99,-111,-118,-95,-110,-111,-115,-107,-139,-120,-131,-128,-206,-218,-444,-252,-275,-265,-446,-447,-432,-439,-562,-562,-562,-562,-562,-562,-562,-556,-666,-676,-738,-715,-677,-645,-745,-741,-732,-698,-708,-707,-684,-692,-629,-590]} 1. e4 {[%emt 0:00:12] ChessBase Website} e5 {[%emt 0:00:04]} 2. Nf3 {[%emt 0:00:10]} Nc6 {[%emt 0:00:05]} 3. Bb5 {[%emt 0:00:12]} a6 {[%emt 0:00:08]} 4. Ba4 {[%emt 0:00:06]} Nf6 {[%emt 0:00:05]} 5. O-O {[%emt 0:00:09]} Nxe4 {[%emt 0:00:14]} 6. d4 {[%emt 0:00:19]} b5 {[%emt 0:00:04]} 7. Bb3 {[%emt 0:00:05]} d5 {[%emt 0:00:04]} 8. dxe5 {[%emt 0:00:11]} Be6 {[%emt 0:00:04]} 9. Be3 {[%emt 0:00:27]} Be7 {[%emt 0:00:35]} 10. c3 {[%emt 0:00:28]} Nc5 {[%emt 0:01:48]} 11. Bc2 {[%emt 0:14:43]} Nd7 {[%emt 0:01:23]} 12. Re1 {[%emt 0:14:18] C83: Open Ruy Lopez: 9 c3 Be7.} Ndxe5 {[%emt 0:00:15]} 13. Nxe5 {[%emt 0:02:51]} Nxe5 {[%emt 0:00:11] [#]} 14. Qh5 $146 {[%emt 0:00:28] White has an edge.} ({Predecessor:} 14. Bd4 Ng6 15. Bxg7 Rg8 16. Bxg6 Rxg7 17. Rxe6 hxg6 18. Re2 Kf8 19. Nd2 Rh7 20. Nf3 Bf6 21. Qd3 Kg7 22. a4 c6 {½-½ (44) Dominguez Perez,L (2757)-Nakamura,H (2772) Elancourt 2013 CBM 157 [ChessBase Website]}) 14... Ng4 {[%emt 0:18:09]} 15. Bd4 {[%emt 0:06:37] [#] Black must now prevent Rxe6.} Qd7 {[%emt 0:11:16]} (15... g6 16. Bxg6 fxg6 17. Qh3 $14) 16. Nd2 {[%emt 0:01:37]} g6 {[%emt 0:06:43]} 17. Qh3 {[%emt 0:02:05]} O-O {[%emt 0:00:19]} (17... Nxf2 $2 18. Qg3 $18) 18. b4 {[%emt 0:08:09] Inhibits c5.} Rfe8 {[%emt 0:12:23]} (18... a5 $15 19. f3 Bg5) 19. Nb3 $11 {[%emt 0:04:56]} f6 {[%emt 0:08:58]} 20. Rxe6 {[%emt 0:08:40]} Qxe6 $17 {[%emt 0:00:12] White is now going downhill.} 21. f3 {[%emt 0:00:04]} Qe2 {[%emt 0:00:59][%cal Oe7d6] [#] Threatens to win with ...Bd6!} 22. Qxg4 {[%emt 0:01:12][%cal Oc2g6] aiming for Bxg6!} Qxc2 {[%emt 0:00:15]} 23. Qe6+ {[%emt 0:00:04]} Kg7 {[%emt 0:07:32] Hoping for ...Qf5.} 24. g4 {[%emt 0:06:45] Inhibits Qf5.} Rad8 {[%emt 0:07:26]} 25. Nc5 {[%emt 0:03:11]} Qd2 {[%emt 0:04:13][%cal Od2d4] ...Qxd4+! is the strong threat.} 26. Nd7 {[%emt 0:12:39]} (26. Re1 $17) 26... Qf4 $19 {[%emt 0:03:11]} 27. Re1 $2 {[%emt 0:02:38]} (27. a3) 27... Qd6 {[%emt 0:01:00]} ({Worse is} 27... Qxf3 28. Rf1 Qe4 29. Bxf6+ Bxf6 30. Qxf6+ Kh6 31. Qh4+ Kg7 32. Qf6+ (32. Nf6 Qe3+ 33. Kg2 h6 $11) 32... Kh6 33. Qh4+ Kg7 34. Qf6+ $11 (34. Nf6 Qe3+ 35. Kg2 h6 $11)) (27... Bd6 $142 28. Bxf6+ Kh6) 28. Nc5 {[%emt 0:05:06]} Rc8 {[%emt 0:03:58] Strongly threatening ...Qxe6.} 29. Nxa6 $2 {[%emt 0:04:53]} (29. Qe3 {was worth a try.} Kf7 30. Qh6) 29... Qxe6 {[%emt 0:00:35] Black is clearly winning.} 30. Rxe6 {[%emt 0:00:03]} Kf7 {[%emt 0:00:18]} 31. Nc5 {[%emt 0:00:04]} Ra8 {[%emt 0:01:02]} 32. Rc6 {[%emt 0:00:23]} Bd6 {[%emt 0:01:57]} 33. Na6 {[%emt 0:00:31]} Re2 {[%emt 0:04:19] And now ...Ke7 would win.} 34. a3 {[%emt 0:00:35]} Bxh2+ {[%emt 0:01:44]} 35. Kh1 {[%emt 0:00:08]} Be5 {[%emt 0:01:24]} 36. f4 {[%emt 0:00:49]} Bxd4 {[%emt 0:00:28]} 37. cxd4 {[%emt 0:00:04][%mdl 4096] Endgame KRR-KRN} Ra7 {[%emt 0:01:36]} 38. Rxc7+ {[%emt 0:00:15]} Re7 {[%emt 0:00:50]} 39. Rc6 {[%emt 0:00:04]} Re4 {[%emt 0:02:07][%csl LRd4,LRf4]} 40. Nc7 {[%emt 0:00:39]} Rxa3 {[%emt 0:00:45]} 41. Nxb5 {[%emt 0:30:14]} Ra1+ {[%emt 0:30:24]} 42. Kg2 {[%emt 0:00:04]} Rxf4 {[%emt 0:00:59] Weighted Error Value: White=0.42/Black=0.15 (very precise)} 0-1